[Event "Titled Tuesday Blitz February 28 Late 2023"]
[White "Sabar, Ethmane Daouda"]
[Black "Marra, Eduardo da Costa"]
[WhiteFideId "19600097"]
[BlackFideId "2106990"]
[WhiteElo "1950"]
[BlackElo "2252"]
[Result "1-0"]
[Round "01"]
[TimeControl "180+2"]
[Date "2023.02.28"]
[WhiteClock "0:00:20"]
[BlackClock "0:01:47"]

1. b3 {[%clk 0:02:58]}  e5 {[%clk 0:02:59]} 2. Bb2 {[%clk 0:02:58]}  Nc6 {[%clk 0:02:59]} 3. e3 {[%clk 0:02:58]}  a6 {[%clk 0:02:59]} 4. Nf3 {[%clk 0:02:57]}  d6 {[%clk 0:02:59]} 5. d4 {[%clk 0:02:57]}  e4 {[%clk 0:02:59]} 6. Nfd2 {[%clk 0:02:57]}  f5 {[%clk 0:02:59]} 7. c4 {[%clk 0:02:55]}  Nf6 {[%clk 0:02:59]} 8. Be2 {[%clk 0:02:54]}  Be7 {[%clk 0:03:00]} 9. Nc3 {[%clk 0:02:54]}  O-O {[%clk 0:03:00]} 10. O-O {[%clk 0:02:54]}  Qe8 {[%clk 0:02:58]} 11. f3 {[%clk 0:02:46]}  exf3 {[%clk 0:02:54]} 12. Bxf3 {[%clk 0:02:39]}  Bd7 {[%clk 0:02:45]} 13. Qe2 {[%clk 0:02:27]}  Qg6 {[%clk 0:02:41]} 14. Rae1 {[%clk 0:02:17]}  Rae8 {[%clk 0:02:36]} 15. Nd5 {[%clk 0:02:06]}  Bd8 {[%clk 0:02:33]} 16. Nxf6+ {[%clk 0:02:02]}  Bxf6 {[%clk 0:02:31]} 17. Bh5 {[%clk 0:02:00]}  Qg5 {[%clk 0:02:32]} 18. Bxe8 {[%clk 0:01:59]}  Rxe8 {[%clk 0:02:33]} 19. Nf3 {[%clk 0:01:58]}  Qh6 {[%clk 0:02:32]} 20. a3 {[%clk 0:01:49]}  g5 {[%clk 0:02:25]} 21. d5 {[%clk 0:01:39]}  Ne5 {[%clk 0:02:26]} 22. Nxe5 {[%clk 0:01:12]}  dxe5 {[%clk 0:02:25]} 23. e4 {[%clk 0:01:00]}  f4 {[%clk 0:02:25]} 24. g4 {[%clk 0:00:33]}  Qh3 {[%clk 0:02:17]} 25. Qf3 {[%clk 0:00:26]}  Qxf3 {[%clk 0:02:14]} 26. Rxf3 {[%clk 0:00:27]}  Bxg4 {[%clk 0:02:14]} 27. Rd3 {[%clk 0:00:22]}  Be7 {[%clk 0:02:11]} 28. b4 {[%clk 0:00:22]}  b6 {[%clk 0:02:06]} 29. Bxe5 {[%clk 0:00:21]}  Bd8 {[%clk 0:01:54]} 30. Bc3 {[%clk 0:00:20]}  Bf5 {[%clk 0:01:50]} 31. exf5 {[%clk 0:00:19]}  Rf8 {[%clk 0:01:47]} 32. c5 {[%clk 0:00:17]}  Kf7 {[%clk 0:01:48]} 33. d6 {[%clk 0:00:17]}  bxc5 {[%clk 0:01:47]} 34. bxc5 {[%clk 0:00:17]}  cxd6 {[%clk 0:01:48]} 35. Rxd6 {[%clk 0:00:16]}  Be7 {[%clk 0:01:48]} 36. Rd7 {[%clk 0:00:17]}  Re8 {[%clk 0:01:48]} 37. Rexe7+ {[%clk 0:00:17]}  Rxe7 {[%clk 0:01:48]} 38. Rxe7+ {[%clk 0:00:18]}  Kxe7 {[%clk 0:01:48]} 39. Be5 {[%clk 0:00:17]}  h6 {[%clk 0:01:47]} 40. c6 {[%clk 0:00:17]}  a5 {[%clk 0:01:46]} 41. Kf2 {[%clk 0:00:18]}  a4 {[%clk 0:01:46]} 42. Bc7 {[%clk 0:00:18]}  Kf6 {[%clk 0:01:46]} 43. Bd8+ {[%clk 0:00:18]}  Kf7 {[%clk 0:01:46]} 44. c7 {[%clk 0:00:19]}  Ke8 {[%clk 0:01:47]} 45. c8=Q {[%clk 0:00:20]} 1-0


[Site "https://www.chess.com"]

[Event "Titled Tuesday Blitz February 28 Late 2023"]
[White "Khatena, Moshe"]
[Black "Riff, Vincent"]
[WhiteFideId "2010461"]
[BlackFideId "617776"]
[WhiteElo "2142"]
[BlackElo "2369"]
[Result "0-1"]
[Round "01"]
[TimeControl "180+2"]
[Date "2023.02.28"]
[WhiteClock "0:00:20"]
[BlackClock "0:00:27"]

1. e4 {[%clk 0:02:56]}  c5 {[%clk 0:02:50]} 2. b3 {[%clk 0:02:56]}  Nc6 {[%clk 0:02:49]} 3. Bb2 {[%clk 0:02:56]}  d6 {[%clk 0:02:48]} 4. Bb5 {[%clk 0:02:55]}  Nf6 {[%clk 0:02:47]} 5. Qe2 {[%clk 0:02:53]}  Bd7 {[%clk 0:02:46]} 6. f4 {[%clk 0:02:48]}  e5 {[%clk 0:02:27]} 7. Bxc6 {[%clk 0:02:42]}  Bxc6 {[%clk 0:02:25]} 8. d3 {[%clk 0:02:42]}  exf4 {[%clk 0:02:22]} 9. Nh3 {[%clk 0:02:40]}  Be7 {[%clk 0:02:17]} 10. Nxf4 {[%clk 0:02:37]}  O-O {[%clk 0:02:16]} 11. Nd2 {[%clk 0:02:36]}  Nd7 {[%clk 0:02:11]} 12. Nf3 {[%clk 0:02:04]}  Ne5 {[%clk 0:02:07]} 13. Nxe5 {[%clk 0:01:57]}  dxe5 {[%clk 0:02:08]} 14. Bxe5 {[%clk 0:01:53]}  Bf6 {[%clk 0:02:06]} 15. Bxf6 {[%clk 0:01:53]}  Qxf6 {[%clk 0:02:06]} 16. O-O {[%clk 0:01:54]}  Qd4+ {[%clk 0:02:05]} 17. Kh1 {[%clk 0:01:52]}  Rae8 {[%clk 0:02:02]} 18. Qg4 {[%clk 0:01:46]}  g6 {[%clk 0:01:50]} 19. Rae1 {[%clk 0:01:43]}  Qc3 {[%clk 0:01:43]} 20. Nh5 {[%clk 0:01:33]}  f5 {[%clk 0:01:38]} 21. Qg5 {[%clk 0:01:23]}  Kh8 {[%clk 0:01:31]} 22. Ng3 {[%clk 0:01:17]}  fxe4 {[%clk 0:01:26]} 23. Nxe4 {[%clk 0:01:02]}  Rf5 {[%clk 0:01:20]} 24. Qh4 {[%clk 0:00:53]}  Ref8 {[%clk 0:01:17]} 25. Rxf5 {[%clk 0:00:49]}  gxf5 {[%clk 0:01:08]} 26. Ng5 {[%clk 0:00:47]}  Qg7 {[%clk 0:01:06]} 27. Re2 {[%clk 0:00:34]}  Rg8 {[%clk 0:01:00]} 28. Nxh7 {[%clk 0:00:29]}  Qa1+ {[%clk 0:00:32]} 29. Re1 {[%clk 0:00:26]}  Bxg2+ {[%clk 0:00:32]} 30. Kg1 {[%clk 0:00:26]}  Qd4+ {[%clk 0:00:30]} 31. Qf2 {[%clk 0:00:22]}  Bh3+ {[%clk 0:00:27]} 32. Kh1 {[%clk 0:00:20]}  Qxf2 {[%clk 0:00:27]} 0-1


[Site "https://www.chess.com"]

[Event "Titled Tuesday Blitz February 28 Late 2023"]
[White "Klenburg, Michael"]
[Black "Comas Fabrego, Lluis"]
[WhiteFideId "14102072"]
[BlackFideId "2200325"]
[WhiteElo "2396"]
[BlackElo "2523"]
[Result "1-0"]
[Round "01"]
[TimeControl "180+2"]
[Date "2023.02.28"]
[WhiteClock "0:01:38"]
[BlackClock "0:00:40"]

1. e4 {[%clk 0:02:59]}  c5 {[%clk 0:02:38]} 2. d3 {[%clk 0:02:57]}  d6 {[%clk 0:02:37]} 3. g3 {[%clk 0:02:58]}  Nc6 {[%clk 0:02:35]} 4. Bg2 {[%clk 0:02:57]}  g6 {[%clk 0:02:34]} 5. f4 {[%clk 0:02:57]}  Bg7 {[%clk 0:02:34]} 6. Nf3 {[%clk 0:02:57]}  e6 {[%clk 0:02:34]} 7. O-O {[%clk 0:02:57]}  Nge7 {[%clk 0:02:34]} 8. c3 {[%clk 0:02:57]}  O-O {[%clk 0:02:33]} 9. Be3 {[%clk 0:02:57]}  b6 {[%clk 0:02:26]} 10. Bf2 {[%clk 0:02:57]}  Bb7 {[%clk 0:02:26]} 11. Re1 {[%clk 0:02:57]}  Rc8 {[%clk 0:02:22]} 12. a4 {[%clk 0:02:56]}  a6 {[%clk 0:02:21]} 13. Na3 {[%clk 0:02:56]}  Qd7 {[%clk 0:02:19]} 14. Nc4 {[%clk 0:02:53]}  Qc7 {[%clk 0:02:17]} 15. Qb3 {[%clk 0:02:53]}  Na5 {[%clk 0:02:12]} 16. Qxb6 {[%clk 0:02:44]}  Nxc4 {[%clk 0:02:10]} 17. Qxc7 {[%clk 0:02:44]}  Rxc7 {[%clk 0:02:11]} 18. dxc4 {[%clk 0:02:44]}  Bc6 {[%clk 0:02:08]} 19. Rad1 {[%clk 0:02:31]}  Rb8 {[%clk 0:02:08]} 20. Re2 {[%clk 0:02:24]}  Rcb7 {[%clk 0:01:57]} 21. Rxd6 {[%clk 0:02:23]}  Bxa4 {[%clk 0:01:40]} 22. Rxa6 {[%clk 0:02:13]}  Bc6 {[%clk 0:01:32]} 23. Ra2 {[%clk 0:02:10]}  Rd7 {[%clk 0:01:08]} 24. Bxc5 {[%clk 0:02:07]}  Rd1+ {[%clk 0:01:08]} 25. Kf2 {[%clk 0:02:07]}  Nc8 {[%clk 0:01:06]} 26. Nd4 {[%clk 0:02:03]}  Be8 {[%clk 0:01:01]} 27. e5 {[%clk 0:01:54]}  Bf8 {[%clk 0:00:56]} 28. Bxf8 {[%clk 0:01:51]}  Kxf8 {[%clk 0:00:57]} 29. c5 {[%clk 0:01:50]}  Ne7 {[%clk 0:00:54]} 30. b4 {[%clk 0:01:49]}  Rc1 {[%clk 0:00:51]} 31. Rec2 {[%clk 0:01:46]}  Rxc2+ {[%clk 0:00:50]} 32. Rxc2 {[%clk 0:01:44]}  Nd5 {[%clk 0:00:50]} 33. Bxd5 {[%clk 0:01:42]}  exd5 {[%clk 0:00:51]} 34. b5 {[%clk 0:01:41]}  Ke7 {[%clk 0:00:46]} 35. c6 {[%clk 0:01:39]}  Kd8 {[%clk 0:00:40]} 36. Ra2 {[%clk 0:01:38]} 1-0


[Site "https://www.chess.com"]

[Event "Titled Tuesday Blitz February 28 Late 2023"]
[White "Michalski, Olaf"]
[Black "Prem, Pranav"]
[WhiteFideId "1106740"]
[BlackFideId "30901057"]
[WhiteElo "2173"]
[BlackElo "1970"]
[Result "0-1"]
[Round "01"]
[TimeControl "180+2"]
[Date "2023.02.28"]
[WhiteClock "0:00:01"]
[BlackClock "0:00:20"]

1. d4 {[%clk 0:03:00]}  d5 {[%clk 0:02:58]} 2. c4 {[%clk 0:02:58]}  e6 {[%clk 0:02:58]} 3. Nc3 {[%clk 0:02:56]}  Nf6 {[%clk 0:02:58]} 4. Bg5 {[%clk 0:02:56]}  Be7 {[%clk 0:02:57]} 5. e3 {[%clk 0:02:56]}  Nbd7 {[%clk 0:02:56]} 6. Rc1 {[%clk 0:02:54]}  O-O {[%clk 0:02:54]} 7. cxd5 {[%clk 0:02:47]}  exd5 {[%clk 0:02:55]} 8. Bd3 {[%clk 0:02:47]}  c6 {[%clk 0:02:48]} 9. Nge2 {[%clk 0:02:40]}  Re8 {[%clk 0:02:44]} 10. O-O {[%clk 0:02:29]}  Nf8 {[%clk 0:02:37]} 11. Ng3 {[%clk 0:02:14]}  Ne6 {[%clk 0:02:33]} 12. Bxf6 {[%clk 0:01:41]}  Bxf6 {[%clk 0:02:34]} 13. Nh5 {[%clk 0:01:23]}  Be7 {[%clk 0:02:28]} 14. Qf3 {[%clk 0:01:16]}  Bd6 {[%clk 0:02:21]} 15. g3 {[%clk 0:00:57]}  Ng5 {[%clk 0:02:13]} 16. Qe2 {[%clk 0:00:46]}  Nh3+ {[%clk 0:02:05]} 17. Kh1 {[%clk 0:00:36]}  g6 {[%clk 0:02:06]} 18. Nf4 {[%clk 0:00:21]}  Bxf4 {[%clk 0:01:41]} 19. gxf4 {[%clk 0:00:21]}  Nxf4 {[%clk 0:01:41]} 20. Qd2 {[%clk 0:00:20]}  Nxd3 {[%clk 0:01:41]} 21. Qxd3 {[%clk 0:00:20]}  Qh4 {[%clk 0:01:41]} 22. f4 {[%clk 0:00:18]}  Qh3 {[%clk 0:01:39]} 23. Rce1 {[%clk 0:00:14]}  Bf5 {[%clk 0:01:39]} 24. Qd2 {[%clk 0:00:14]}  b5 {[%clk 0:01:36]} 25. Rf2 {[%clk 0:00:11]}  b4 {[%clk 0:01:33]} 26. Ne2 {[%clk 0:00:09]}  Rxe3 {[%clk 0:01:28]} 27. Ng3 {[%clk 0:00:08]}  Rxe1+ {[%clk 0:01:26]} 28. Qxe1 {[%clk 0:00:08]}  a5 {[%clk 0:00:49]} 29. Qe5 {[%clk 0:00:04]}  Qg4 {[%clk 0:00:43]} 30. Nxf5 {[%clk 0:00:02]}  Qxf5 {[%clk 0:00:39]} 31. Qxf5 {[%clk 0:00:02]}  gxf5 {[%clk 0:00:40]} 32. Rc2 {[%clk 0:00:02]}  Ra6 {[%clk 0:00:38]} 33. Rc5 {[%clk 0:00:02]}  Kf8 {[%clk 0:00:31]} 34. Kg2 {[%clk 0:00:01]}  Ke7 {[%clk 0:00:32]} 35. Kg3 {[%clk 0:00:02]}  Kd6 {[%clk 0:00:27]} 36. Kh4 {[%clk 0:00:02]}  a4 {[%clk 0:00:25]} 37. Kg5 {[%clk 0:00:01]}  a3 {[%clk 0:00:22]} 38. b3 {[%clk 0:00:01]}  Ra8 {[%clk 0:00:20]} 39. Kxf5 {[%clk 0:00:01]}  Re8 {[%clk 0:00:20]} 0-1


[Site "https://www.chess.com"]

[Event "Titled Tuesday Blitz February 28 Late 2023"]
[White "Gurevich, Ilya"]
[Black "Jimenez Almeida, Luis David"]
[WhiteFideId "2000628"]
[BlackFideId "22242244"]
[WhiteElo "2125"]
[BlackElo "2245"]
[Result "0-1"]
[Round "01"]
[TimeControl "180+2"]
[Date "2023.02.28"]
[WhiteClock "0:00:02"]
[BlackClock "0:00:33"]

1. d4 {[%clk 0:02:59]}  g6 {[%clk 0:02:59]} 2. c4 {[%clk 0:02:59]}  Bg7 {[%clk 0:02:59]} 3. e4 {[%clk 0:03:00]}  c5 {[%clk 0:02:59]} 4. d5 {[%clk 0:03:00]}  b5 {[%clk 0:02:59]} 5. cxb5 {[%clk 0:03:00]}  a6 {[%clk 0:02:59]} 6. b6 {[%clk 0:03:00]}  Qxb6 {[%clk 0:02:58]} 7. Nf3 {[%clk 0:03:01]}  d6 {[%clk 0:02:59]} 8. Nc3 {[%clk 0:03:00]}  Nd7 {[%clk 0:02:59]} 9. a4 {[%clk 0:02:57]}  Ngf6 {[%clk 0:02:58]} 10. a5 {[%clk 0:02:57]}  Qb4 {[%clk 0:02:58]} 11. Ra4 {[%clk 0:02:57]}  Qb7 {[%clk 0:02:58]} 12. Be2 {[%clk 0:02:57]}  O-O {[%clk 0:02:58]} 13. O-O {[%clk 0:02:56]}  Ne8 {[%clk 0:02:57]} 14. Ra3 {[%clk 0:02:55]}  Nc7 {[%clk 0:02:50]} 15. Rb3 {[%clk 0:02:53]}  Qa7 {[%clk 0:02:50]} 16. Bg5 {[%clk 0:02:47]}  Re8 {[%clk 0:02:50]} 17. Qd2 {[%clk 0:02:32]}  Rb8 {[%clk 0:02:45]} 18. Rxb8 {[%clk 0:02:17]}  Qxb8 {[%clk 0:02:42]} 19. Rb1 {[%clk 0:02:14]}  Qb4 {[%clk 0:02:38]} 20. Ra1 {[%clk 0:01:13]}  Bxc3 {[%clk 0:02:24]} 21. Qxc3 {[%clk 0:01:12]}  Qxe4 {[%clk 0:02:21]} 22. Bh6 {[%clk 0:01:03]}  Nf6 {[%clk 0:02:14]} 23. Re1 {[%clk 0:00:34]}  Ncxd5 {[%clk 0:02:12]} 24. Qb3 {[%clk 0:00:26]}  Qb4 {[%clk 0:02:11]} 25. Qd1 {[%clk 0:00:25]}  Qxa5 {[%clk 0:02:06]} 26. Bc4 {[%clk 0:00:25]}  Bb7 {[%clk 0:01:58]} 27. Ng5 {[%clk 0:00:18]}  Qb4 {[%clk 0:01:49]} 28. b3 {[%clk 0:00:18]}  Ng4 {[%clk 0:01:36]} 29. Re3 {[%clk 0:00:10]}  Ngxe3 {[%clk 0:01:22]} 30. fxe3 {[%clk 0:00:09]}  Qc3 {[%clk 0:01:15]} 31. Bxd5 {[%clk 0:00:08]}  Bxd5 {[%clk 0:01:16]} 32. h4 {[%clk 0:00:02]}  Qxe3+ {[%clk 0:01:14]} 33. Kh1 {[%clk 0:00:01]}  Qd4 {[%clk 0:01:09]} 34. Qf1 {[%clk 0:00:01]}  Qxh4+ {[%clk 0:01:08]} 35. Kg1 {[%clk 0:00:01]}  Qxh6 {[%clk 0:01:09]} 36. Nf3 {[%clk 0:00:01]}  Qe3+ {[%clk 0:01:09]} 37. Kh1 {[%clk 0:00:01]}  Bxf3 {[%clk 0:01:09]} 38. gxf3 {[%clk 0:00:02]}  Rb8 {[%clk 0:00:35]} 39. f4 {[%clk 0:00:02]}  Rxb3 {[%clk 0:00:34]} 40. f5 {[%clk 0:00:02]}  Qf3+ {[%clk 0:00:33]} 0-1


[Site "https://www.chess.com"]

[Event "Titled Tuesday Blitz February 28 Late 2023"]
[White "Yedidia, Daniel"]
[Black "Eckert, Doug"]
[WhiteFideId "30905907"]
[BlackFideId "2001993"]
[WhiteElo "2545"]
[BlackElo "2202"]
[Result "1/2-1/2"]
[Round "01"]
[TimeControl "180+2"]
[Date "2023.02.28"]
[WhiteClock "0:00:17"]
[BlackClock "0:00:24"]

1. d4 {[%clk 0:03:00]}  Nf6 {[%clk 0:02:59]} 2. c4 {[%clk 0:03:01]}  e6 {[%clk 0:02:59]} 3. Nc3 {[%clk 0:03:00]}  Bb4 {[%clk 0:02:59]} 4. e3 {[%clk 0:03:00]}  O-O {[%clk 0:02:58]} 5. Bd3 {[%clk 0:03:00]}  d5 {[%clk 0:02:58]} 6. Nf3 {[%clk 0:03:00]}  c5 {[%clk 0:02:57]} 7. O-O {[%clk 0:02:59]}  cxd4 {[%clk 0:02:56]} 8. exd4 {[%clk 0:02:57]}  dxc4 {[%clk 0:02:56]} 9. Bxc4 {[%clk 0:02:58]}  b6 {[%clk 0:02:57]} 10. Bg5 {[%clk 0:02:58]}  Bb7 {[%clk 0:02:52]} 11. Rc1 {[%clk 0:02:56]}  Nbd7 {[%clk 0:02:51]} 12. a3 {[%clk 0:02:56]}  Be7 {[%clk 0:02:38]} 13. Ba2 {[%clk 0:02:49]}  Rc8 {[%clk 0:02:33]} 14. Re1 {[%clk 0:02:47]}  Re8 {[%clk 0:02:25]} 15. Bb1 {[%clk 0:02:31]}  h6 {[%clk 0:02:08]} 16. Bh4 {[%clk 0:02:31]}  Nd5 {[%clk 0:02:06]} 17. Qd3 {[%clk 0:02:03]}  Nf8 {[%clk 0:02:03]} 18. Bg3 {[%clk 0:01:45]}  Bf6 {[%clk 0:01:49]} 19. Ne4 {[%clk 0:01:41]}  Be7 {[%clk 0:01:45]} 20. Ne5 {[%clk 0:01:41]}  Nf6 {[%clk 0:01:38]} 21. Nxf6+ {[%clk 0:01:38]}  Bxf6 {[%clk 0:01:38]} 22. h3 {[%clk 0:01:01]}  Qd5 {[%clk 0:01:34]} 23. Nf3 {[%clk 0:00:47]}  Rxc1 {[%clk 0:01:26]} 24. Rxc1 {[%clk 0:00:47]}  Rc8 {[%clk 0:01:26]} 25. Rxc8 {[%clk 0:00:47]}  Bxc8 {[%clk 0:01:26]} 26. Bc2 {[%clk 0:00:46]}  Bb7 {[%clk 0:01:22]} 27. Bb3 {[%clk 0:00:45]}  Qe4 {[%clk 0:01:23]} 28. Qxe4 {[%clk 0:00:43]}  Bxe4 {[%clk 0:01:23]} 29. Ne5 {[%clk 0:00:41]}  Be7 {[%clk 0:01:00]} 30. f3 {[%clk 0:00:41]}  Bb7 {[%clk 0:00:56]} 31. Kf2 {[%clk 0:00:38]}  f6 {[%clk 0:00:53]} 32. Nd3 {[%clk 0:00:33]}  Kf7 {[%clk 0:00:50]} 33. Ke3 {[%clk 0:00:31]}  Nd7 {[%clk 0:00:48]} 34. Nf4 {[%clk 0:00:29]}  Nf8 {[%clk 0:00:46]} 35. d5 {[%clk 0:00:23]}  exd5 {[%clk 0:00:41]} 36. Nxd5 {[%clk 0:00:24]}  Bxd5 {[%clk 0:00:33]} 37. Bxd5+ {[%clk 0:00:25]}  Ke8 {[%clk 0:00:32]} 38. b4 {[%clk 0:00:22]}  a5 {[%clk 0:00:31]} 39. bxa5 {[%clk 0:00:19]}  bxa5 {[%clk 0:00:31]} 40. a4 {[%clk 0:00:20]}  Bb4 {[%clk 0:00:29]} 41. Bc7 {[%clk 0:00:19]}  Kd7 {[%clk 0:00:28]} 42. Bb6 {[%clk 0:00:18]}  Ne6 {[%clk 0:00:27]} 43. Bc4 {[%clk 0:00:18]}  Nc5 {[%clk 0:00:25]} 44. Bb5+ {[%clk 0:00:17]}  Kd6 {[%clk 0:00:26]} 45. Kd4 {[%clk 0:00:17]}  Nb3+ {[%clk 0:00:24]} 46. Kc4 {[%clk 0:00:17]}  Nd2+ {[%clk 0:00:24]} 47. Kd3 {[%clk 0:00:17]}  Nb3 {[%clk 0:00:24]} 48. Bf2 {[%clk 0:00:16]}  Nc5+ {[%clk 0:00:24]} 49. Kc4 {[%clk 0:00:16]}  Ne6 {[%clk 0:00:23]} 50. Bg3+ {[%clk 0:00:17]}  Ke7 {[%clk 0:00:20]} 51. Kd5 {[%clk 0:00:17]}  g5 {[%clk 0:00:19]} 52. Bb8 {[%clk 0:00:16]}  Nf4+ {[%clk 0:00:19]} 53. Bxf4 {[%clk 0:00:16]}  gxf4 {[%clk 0:00:20]} 54. Ke4 {[%clk 0:00:17]}  Bd2 {[%clk 0:00:20]} 55. Kf5 {[%clk 0:00:17]}  Kf7 {[%clk 0:00:20]} 56. Bc4+ {[%clk 0:00:18]}  Kg7 {[%clk 0:00:21]} 57. h4 {[%clk 0:00:19]}  Be3 {[%clk 0:00:21]} 58. h5 {[%clk 0:00:19]}  Bd2 {[%clk 0:00:21]} 59. Ke6 {[%clk 0:00:19]}  Be3 {[%clk 0:00:22]} 60. Bd3 {[%clk 0:00:20]}  Bd2 {[%clk 0:00:22]} 61. Bg6 {[%clk 0:00:20]}  Be3 {[%clk 0:00:22]} 62. Kf5 {[%clk 0:00:21]}  Bd2 {[%clk 0:00:23]} 63. Ke4 {[%clk 0:00:21]}  Be3 {[%clk 0:00:23]} 64. g3 {[%clk 0:00:20]}  Bc1 {[%clk 0:00:22]} 65. gxf4 {[%clk 0:00:20]}  Bd2 {[%clk 0:00:22]} 66. f5 {[%clk 0:00:18]}  Bb4 {[%clk 0:00:22]} 67. Kd5 {[%clk 0:00:19]}  Be1 {[%clk 0:00:23]} 68. Ke4 {[%clk 0:00:17]}  Bb4 {[%clk 0:00:24]} 69. Kd5 {[%clk 0:00:17]}  Be1 {[%clk 0:00:24]} 70. Ke4 {[%clk 0:00:17]} 1/2-1/2


[Site "https://www.chess.com"]

[Event "Titled Tuesday Blitz February 28 Late 2023"]
[White "Taboas Rodriguez, Daniel"]
[Black "Ricaurte Lopez, Juan Carlos"]
[WhiteFideId "2208466"]
[BlackFideId "3600327"]
[WhiteElo "2365"]
[BlackElo "2209"]
[Result "1-0"]
[Round "01"]
[TimeControl "180+2"]
[Date "2023.02.28"]
[WhiteClock "0:00:58"]
[BlackClock "0:00:08"]

1. d4 {[%clk 0:02:59]}  d6 {[%clk 0:02:08]} 2. Nf3 {[%clk 0:03:00]}  Nf6 {[%clk 0:02:04]} 3. c4 {[%clk 0:03:01]}  g6 {[%clk 0:02:02]} 4. Nc3 {[%clk 0:03:01]}  Bg7 {[%clk 0:02:00]} 5. e4 {[%clk 0:03:02]}  O-O {[%clk 0:01:58]} 6. Be2 {[%clk 0:03:03]}  c6 {[%clk 0:01:55]} 7. O-O {[%clk 0:03:01]}  Nbd7 {[%clk 0:01:53]} 8. Be3 {[%clk 0:03:01]}  a5 {[%clk 0:01:50]} 9. Nd2 {[%clk 0:02:55]}  e5 {[%clk 0:01:46]} 10. d5 {[%clk 0:02:55]}  cxd5 {[%clk 0:01:43]} 11. cxd5 {[%clk 0:02:55]}  b6 {[%clk 0:01:39]} 12. Nc4 {[%clk 0:02:52]}  Nc5 {[%clk 0:01:39]} 13. f3 {[%clk 0:02:51]}  Ba6 {[%clk 0:01:34]} 14. a3 {[%clk 0:02:40]}  b5 {[%clk 0:01:26]} 15. Nxa5 {[%clk 0:02:26]}  Qxa5 {[%clk 0:01:12]} 16. b4 {[%clk 0:02:25]}  Qb6 {[%clk 0:01:10]} 17. Rb1 {[%clk 0:02:15]}  Nfd7 {[%clk 0:00:59]} 18. bxc5 {[%clk 0:02:14]}  Nxc5 {[%clk 0:00:57]} 19. Bxb5 {[%clk 0:02:13]}  Bxb5 {[%clk 0:00:56]} 20. Rxb5 {[%clk 0:02:04]}  Qa6 {[%clk 0:00:45]} 21. Bxc5 {[%clk 0:02:04]}  dxc5 {[%clk 0:00:44]} 22. a4 {[%clk 0:02:04]}  Rfc8 {[%clk 0:00:40]} 23. Kh1 {[%clk 0:02:03]}  Bf8 {[%clk 0:00:39]} 24. Qc2 {[%clk 0:01:38]}  c4 {[%clk 0:00:37]} 25. Rfb1 {[%clk 0:01:37]}  Qa7 {[%clk 0:00:30]} 26. a5 {[%clk 0:01:28]}  Qe3 {[%clk 0:00:23]} 27. Ra1 {[%clk 0:01:19]}  Bc5 {[%clk 0:00:20]} 28. a6 {[%clk 0:01:18]}  Bd4 {[%clk 0:00:18]} 29. Rc1 {[%clk 0:01:08]}  Rxa6 {[%clk 0:00:15]} 30. h3 {[%clk 0:01:08]}  Ra3 {[%clk 0:00:10]} 31. Ne2 {[%clk 0:01:03]}  Qf2 {[%clk 0:00:08]} 32. Nxd4 {[%clk 0:00:58]}  exd4 {[%clk 0:00:08]} 33. Qxf2 {[%clk 0:00:58]} 1-0


[Site "https://www.chess.com"]

[Event "Titled Tuesday Blitz February 28 Late 2023"]
[White "Berezin, Viktor"]
[Black "Torres Dominguez, David"]
[WhiteFideId "14107872"]
[BlackFideId "2220857"]
[WhiteElo "2310"]
[BlackElo "1999"]
[Result "1-0"]
[Round "01"]
[TimeControl "180+2"]
[Date "2023.02.28"]
[WhiteClock "0:02:03"]
[BlackClock "0:01:57"]

1. d4 {[%clk 0:02:59]}  e5 {[%clk 0:03:00]} 2. dxe5 {[%clk 0:02:58]}  d6 {[%clk 0:03:00]} 3. Nf3 {[%clk 0:02:55]}  Bg4 {[%clk 0:03:00]} 4. Nc3 {[%clk 0:02:50]}  Nc6 {[%clk 0:03:00]} 5. g3 {[%clk 0:02:50]}  dxe5 {[%clk 0:02:58]} 6. Qxd8+ {[%clk 0:02:48]}  Rxd8 {[%clk 0:02:59]} 7. Bg2 {[%clk 0:02:48]}  f6 {[%clk 0:02:59]} 8. O-O {[%clk 0:02:47]}  a6 {[%clk 0:02:59]} 9. h3 {[%clk 0:02:46]}  Be6 {[%clk 0:02:58]} 10. a3 {[%clk 0:02:26]}  Bd6 {[%clk 0:02:51]} 11. b4 {[%clk 0:02:26]}  Nge7 {[%clk 0:02:48]} 12. Bb2 {[%clk 0:02:26]}  Kf7 {[%clk 0:02:47]} 13. Rfd1 {[%clk 0:02:23]}  Bf5 {[%clk 0:02:40]} 14. Rd2 {[%clk 0:02:19]}  Rhe8 {[%clk 0:02:39]} 15. Rad1 {[%clk 0:02:18]}  Nc8 {[%clk 0:02:34]} 16. Nd5 {[%clk 0:02:11]}  N6e7 {[%clk 0:02:22]} 17. Nh4 {[%clk 0:02:09]}  Be6 {[%clk 0:01:59]} 18. Nxe7 {[%clk 0:02:09]}  Bxe7 {[%clk 0:01:58]} 19. Rxd8 {[%clk 0:02:03]}  Rxd8 {[%clk 0:01:58]} 20. Rxd8 {[%clk 0:02:03]}  Bxd8 {[%clk 0:01:57]} 21. Bxb7 {[%clk 0:02:04]}  Bc4 {[%clk 0:01:57]} 22. Bxc8 {[%clk 0:02:03]} 1-0


[Site "https://www.chess.com"]

[Event "Titled Tuesday Blitz February 28 Late 2023"]
[White "Desideri, Ricardo Maruchi"]
[Black "Martin Duque, Jesus"]
[WhiteFideId "2110440"]
[BlackFideId "2208954"]
[WhiteElo "1945"]
[BlackElo "2305"]
[Result "0-1"]
[Round "01"]
[TimeControl "180+2"]
[Date "2023.02.28"]
[WhiteClock "0:01:20"]
[BlackClock "0:02:05"]

1. e4 {[%clk 0:02:56]}  c5 {[%clk 0:02:59]} 2. Nf3 {[%clk 0:02:54]}  a6 {[%clk 0:02:58]} 3. d4 {[%clk 0:02:54]}  cxd4 {[%clk 0:02:58]} 4. Nxd4 {[%clk 0:02:55]}  Nf6 {[%clk 0:02:58]} 5. c4 {[%clk 0:02:55]}  Nxe4 {[%clk 0:02:55]} 6. Bd3 {[%clk 0:02:52]}  Qa5+ {[%clk 0:02:46]} 7. Kf1 {[%clk 0:02:44]}  Nc5 {[%clk 0:02:42]} 8. b4 {[%clk 0:02:33]}  Qxb4 {[%clk 0:02:41]} 9. Bd2 {[%clk 0:02:33]}  Qa4 {[%clk 0:02:40]} 10. Bc2 {[%clk 0:02:25]}  Qxc4+ {[%clk 0:02:40]} 11. Ne2 {[%clk 0:02:22]}  Nc6 {[%clk 0:02:40]} 12. Na3 {[%clk 0:02:18]}  Qg4 {[%clk 0:02:36]} 13. h3 {[%clk 0:02:14]}  Qh5 {[%clk 0:02:31]} 14. Qb1 {[%clk 0:02:01]}  b5 {[%clk 0:02:22]} 15. Ng3 {[%clk 0:01:58]}  Qd5 {[%clk 0:02:20]} 16. Be3 {[%clk 0:01:52]}  Bb7 {[%clk 0:02:19]} 17. Qe1 {[%clk 0:01:39]}  Ne5 {[%clk 0:02:14]} 18. Rd1 {[%clk 0:01:38]}  Qxg2+ {[%clk 0:02:13]} 19. Ke2 {[%clk 0:01:37]}  Bf3+ {[%clk 0:02:09]} 20. Kd2 {[%clk 0:01:35]}  Bxd1 {[%clk 0:02:07]} 21. Bxd1 {[%clk 0:01:27]}  Qd5+ {[%clk 0:02:06]} 22. Ke2 {[%clk 0:01:20]}  Qd3# {[%clk 0:02:05]} 0-1


[Site "https://www.chess.com"]